[Event "23rd ETCC Women 2021"]
[Site "Catez"]
[Date "2021.11.14"]
[Round "3.29"]
[White "Peng, Zhaoqin"]
[Black "Tsolakidou, Stavroula"]
[Result "1/2-1/2"]
[ECO "D46"]
[WhiteElo "2351"]
[BlackElo "2377"]
[Annotator "ChessBase"]
[PlyCount "107"]
[EventDate "2021.11.08"]
[EventType "team-tourn"]
[EventCountry "SLO"]
[SourceTitle "playchess.com"]
[Source "ChessBase"]
[SourceQuality "1"]
[WhiteTeam "Netherlands"]
[BlackTeam "Greece"]
[WhiteTeamCountry "NED"]
[BlackTeamCountry "GRE"]
[TimeControl "40/5400+30:1800+30"]

1. d4 {[%emt 0:00:07]} d5 {[%emt 0:00:09]} 2. Nf3 {[%emt 0:01:31]} Nf6 {
[%emt 0:00:12]} 3. c4 {[%emt 0:00:13]} c6 {[%emt 0:00:09]} 4. Nc3 {[%emt 0:00:
07]} e6 {[%emt 0:00:16]} 5. e3 {[%emt 0:00:51]} Nbd7 {[%emt 0:00:11]} 6. Qc2 {
[%emt 0:00:51]} Bd6 {[%emt 0:00:25]} 7. Bd3 {[%emt 0:02:17]} dxc4 {[%emt 0:00:
54]} 8. Bxc4 {[%emt 0:00:02]} b5 {[%emt 0:00:29]} 9. Be2 {[%emt 0:00:01]} O-O {
[%emt 0:01:31]} 10. O-O {[%emt 0:00:24]} Bb7 {[%emt 0:00:19]} 11. e4 {[%emt 0:
06:40]} e5 {[%emt 0:00:26]} 12. Bg5 {[%emt 0:00:50]} Qc7 {[%emt 0:31:15]} 13.
Rac1 {[%emt 0:09:12]} Rac8 {[%emt 0:07:42]} 14. Qd2 {[%emt 0:21:52]} Qb8 {
[%emt 0:00:30]} 15. Bxf6 {[%emt 0:00:30]} Nxf6 {[%emt 0:00:30]} 16. dxe5 {
[%emt 0:00:30]} Bxe5 {[%emt 0:00:30]} 17. Nxe5 {[%emt 0:00:30]} Qxe5 {[%emt 0:
00:30]} 18. f4 {[%emt 0:00:30]} Nxe4 {[%emt 0:00:30]} 19. fxe5 {[%emt 0:00:30]}
Nxd2 {[%emt 0:00:30]} 20. Rfd1 {[%emt 0:00:30]} Rcd8 {[%emt 0:00:30]} 21. Rc2 {
[%emt 0:16:37]} Nc4 {[%emt 0:33:08]} 22. Bxc4 {[%emt 0:00:30]} bxc4 {[%emt 0:
00:30]} 23. Rxd8 {[%emt 0:00:30]} Rxd8 {[%emt 0:00:30]} 24. Ne4 {[%emt 0:11:53]
} Rd4 {[%emt 0:03:54]} 25. Nd6 {[%emt 0:10:33]} Ba6 {[%emt 0:00:06]} 26. Nf5 {
[%emt 0:00:18]} Rd1+ {[%emt 0:03:54]} 27. Kf2 {[%emt 0:00:02]} c3 {[%emt 0:00:
18]} 28. Ne3 {[%emt 0:04:51]} Rd2+ {[%emt 0:00:25]} 29. Rxd2 {[%emt 0:00:30]}
cxd2 {[%emt 0:00:04]} 30. Nd1 {[%emt 0:00:07]} Kf8 {[%emt 0:00:46]} 31. Ke3 {
[%emt 0:00:09]} Ke7 {[%emt 0:00:04]} 32. Kxd2 {[%emt 0:00:04]} Ke6 {[%emt 0:00:
02]} 33. Ke3 {[%emt 0:03:32]} Kxe5 {[%emt 0:00:09]} 34. h4 {[%emt 0:01:47]} Bc4
35. b3 {[%emt 0:00:57]} Bd5 {[%emt 0:00:42]} 36. g3 {[%emt 0:00:02]} Be4 {
[%emt 0:01:32]} 37. Nc3 {[%emt 0:00:30]} Bf5 {[%emt 0:00:30]} 38. b4 {[%emt 0:
00:30]} Be6 {[%emt 0:00:30]} 39. a3 {[%emt 0:00:30]} f5 {[%emt 0:00:30]} 40.
Ne2 {[%emt 0:00:30]} g6 {[%emt 0:00:30]} 41. Nd4 {[%emt 0:30:30]} Bd5 {[%emt 0:
30:30]} 42. Ne2 {[%emt 0:00:30]} Bc4 {[%emt 0:00:30]} 43. Nd4 {[%emt 0:00:30]}
Kd5 {[%emt 0:00:30]} 44. Nf3 {[%emt 0:00:30]} h6 {[%emt 0:00:30]} 45. Nd4 {
[%emt 0:00:30]} Bb5 {[%emt 0:00:30]} 46. h5 {[%emt 0:00:04]} gxh5 {[%emt 0:05:
46]} 47. Nxf5 {[%emt 0:00:30]} Kc4 {[%emt 0:00:30]} 48. Nxh6 {[%emt 0:00:30]}
Kb3 {[%emt 0:00:30]} 49. Kd4 {[%emt 0:00:30]} Kxa3 {[%emt 0:00:30]} 50. Kc5 {
[%emt 0:02:47]} Kb3 {[%emt 0:07:24]} 51. Nf5 {[%emt 0:02:12]} Kc3 {[%emt 0:00:
24]} 52. Ng7 {[%emt 0:00:30]} Be2 {[%emt 0:00:22]} 53. Ne6 {[%emt 0:00:46]} Bf3
{[%emt 0:01:17]} 54. Nf4 {[%emt 0:01:08]} 1/2-1/2

[Event "23rd ETCC Women 2021"]
[Site "Catez"]
[Date "2021.11.14"]
[Round "3.30"]
[White "Avramidou, Anastasia"]
[Black "Roebers, Eline"]
[Result "1-0"]
[ECO "A87"]
[WhiteElo "2217"]
[BlackElo "2304"]
[Annotator "ChessBase"]
[PlyCount "41"]
[EventDate "2021.11.08"]
[EventType "team-tourn"]
[EventCountry "SLO"]
[SourceTitle "playchess.com"]
[Source "ChessBase"]
[SourceQuality "1"]
[WhiteTeam "Greece"]
[BlackTeam "Netherlands"]
[WhiteTeamCountry "GRE"]
[BlackTeamCountry "NED"]
[TimeControl "40/5400+30:1800+30"]

1. d4 {[%emt 0:00:04]} f5 {[%emt 0:00:32]} 2. Nf3 {[%emt 0:00:12]} Nf6 {
[%emt 0:00:09]} 3. c4 {[%emt 0:00:15]} g6 {[%emt 0:00:10]} 4. g3 {[%emt 0:00:
08]} Bg7 {[%emt 0:00:04]} 5. Bg2 {[%emt 0:00:06]} O-O {[%emt 0:00:14]} 6. O-O {
[%emt 0:00:08]} d6 {[%emt 0:00:21]} 7. Nc3 {[%emt 0:00:10]} Qe8 {[%emt 0:00:42]
} 8. Re1 {[%emt 0:02:25]} Qf7 {[%emt 0:00:31]} 9. e4 {[%emt 0:00:26]} fxe4 {
[%emt 0:01:10]} 10. Nxe4 {[%emt 0:00:09]} Qxc4 {[%emt 0:02:23]} 11. Nxf6+ {
[%emt 0:00:27]} Bxf6 {[%emt 0:05:42]} 12. Bh6 {[%emt 0:00:40]} Re8 {[%emt 0:05:
38]} 13. Ne5 {[%emt 0:04:31]} Qe6 {[%emt 0:25:41]} 14. Nxg6 {[%emt 0:12:26]}
Qf7 {[%emt 0:05:18]} 15. Nf4 {[%emt 0:01:34]} Nc6 {[%emt 0:09:11]} 16. Bd5 {
[%emt 0:12:31]} e6 {[%emt 0:01:29]} 17. Nxe6 {[%emt 0:00:14]} Nb4 {[%emt 0:08:
36]} 18. Ng5 {[%emt 0:03:56]} Rxe1+ {[%emt 0:00:20]} 19. Qxe1 {[%emt 0:00:04]}
Nxd5 {[%emt 0:00:10]} 20. Nxf7 {[%emt 0:00:04]} Kxf7 {[%emt 0:00:04]} 21. Qe4 {
[%emt 0:00:09]} 1-0

[Event "23rd ETCC Women 2021"]
[Site "Catez"]
[Date "2021.11.14"]
[Round "3.31"]
[White "Ratsma, Rosa"]
[Black "Pavlidou, Ekaterini"]
[Result "0-1"]
[ECO "C54"]
[WhiteElo "2272"]
[BlackElo "2172"]
[Annotator "NA"]
[PlyCount "70"]
[EventDate "2021.11.08"]
[EventType "team-tourn"]
[EventCountry "SLO"]
[SourceTitle "playchess.com"]
[Source "ChessBase"]
[SourceQuality "1"]
[WhiteTeam "Netherlands"]
[BlackTeam "Greece"]
[WhiteTeamCountry "NED"]
[BlackTeamCountry "GRE"]
[TimeControl "40/5400+30:1800+30"]

1. e4 {[%emt 0:00:04]} e5 {[%emt 0:00:33]} 2. Nf3 {[%emt 0:00:35]} Nc6 {
[%emt 0:00:13]} 3. Bc4 {[%emt 0:03:35]} Bc5 {[%emt 0:00:38]} 4. c3 {[%emt 0:01:
09]} Nf6 {[%emt 0:05:30]} 5. d4 {[%emt 0:00:32]} exd4 {[%emt 0:04:09]} 6. e5 {
[%emt 0:00:37]} d5 {[%emt 0:06:31]} 7. Bb5 {[%emt 0:00:21]} Ne4 {[%emt 0:00:59]
} 8. cxd4 {[%emt 0:00:20]} Bb4+ {[%emt 0:03:04]} 9. Bd2 {[%emt 0:01:28]} Bxd2+
{[%emt 0:00:23]} 10. Nbxd2 {[%emt 0:00:23]} O-O {[%emt 0:04:39]} 11. Rc1 {
[%emt 0:08:50]} Ne7 {[%emt 0:18:22]} 12. Qc2 {[%emt 0:13:56]} Nxd2 {[%emt 0:07:
56]} 13. Nxd2 {[%emt 0:01:45]} Nf5 {[%emt 0:04:03]} 14. Qc3 {[%emt 0:05:28]}
Qh4 {[%emt 0:18:14]} 15. Nf3 {[%emt 0:09:45]} Qe4+ {[%emt 0:00:10]} 16. Kd1 {
[%emt 0:06:22]} Nh4 {[%emt 0:04:42]} 17. Nxh4 {[%emt 0:16:53]} Qxh4 {[%emt 0:
00:04]} 18. Qe3 {[%emt 0:01:07]} Qg4+ {[%emt 0:01:32]} 19. Kd2 {[%emt 0:02:19]}
c5 {[%emt 0:02:37]} 20. Rxc5 {[%emt 0:01:46]} Qxg2 {[%emt 0:03:51]} 21. Rhc1 {
[%emt 0:03:31]} Be6 {[%emt 0:04:44]} 22. Qg3 {[%emt 0:07:34]} Qe4 {[%emt 0:00:
26]} 23. Qe3 {[%emt 0:00:32]} Qg2 {[%emt 0:00:34]} 24. Rc7 {[%emt 0:03:48]} f6
{[%emt 0:01:23]} 25. Re7 {[%emt 0:04:05]} fxe5 {[%emt 0:06:16]} 26. Rxe6 {
[%emt 0:00:11]} Rxf2+ {[%emt 0:00:04]} 27. Be2 {[%emt 0:00:33]} e4 {[%emt 0:00:
15]} 28. Re5 {[%emt 0:03:06]} Raf8 {[%emt 0:00:35]} 29. Rc7 {[%emt 0:01:18]} h6
{[%emt 0:00:46]} 30. Ree7 {[%emt 0:02:50]} R8f3 {[%emt 0:00:22]} 31. Rxg7+ {
[%emt 0:00:38]} Qxg7 {[%emt 0:00:03]} 32. Rxg7+ {[%emt 0:00:12]} Kxg7 {[%emt 0:
00:04]} 33. Ke1 {[%emt 0:00:42]} Rxe3 {[%emt 0:00:07]} 34. Kxf2 {[%emt 0:00:04]
} Rxe2+ {[%emt 0:00:50]} 35. Kxe2 {[%emt 0:00:04]} Kf6 {[%emt 0:00:06]} 0-1

[Event "23rd ETCC Women 2021"]
[Site "Catez"]
[Date "2021.11.14"]
[Round "3.32"]
[White "Markantonaki, Haritomeni"]
[Black "Lanchava, Tea"]
[Result "0-1"]
[ECO "B06"]
[WhiteElo "2174"]
[BlackElo "2215"]
[Annotator "NA"]
[PlyCount "68"]
[EventDate "2021.11.08"]
[EventType "team-tourn"]
[EventCountry "SLO"]
[SourceTitle "playchess.com"]
[Source "ChessBase"]
[SourceQuality "1"]
[WhiteTeam "Greece"]
[BlackTeam "Netherlands"]
[WhiteTeamCountry "GRE"]
[BlackTeamCountry "NED"]
[TimeControl "40/5400+30:1800+30"]

1. e4 {[%emt 0:00:04]} g6 {[%emt 0:00:10]} 2. d4 {[%emt 0:00:17]} d6 {[%emt 0:
00:20]} 3. Nc3 {[%emt 0:00:31]} a6 {[%emt 0:00:37]} 4. a4 {[%emt 0:02:59]} Bg7
{[%emt 0:00:56]} 5. f4 {[%emt 0:01:05]} Nc6 {[%emt 0:01:05]} 6. d5 {[%emt 0:06:
17]} Nb4 {[%emt 0:00:44]} 7. Nf3 {[%emt 0:00:35]} c6 {[%emt 0:07:51]} 8. dxc6 {
[%emt 0:15:12]} bxc6 {[%emt 0:02:00]} 9. a5 {[%emt 0:01:49]} Nf6 {[%emt 0:04:
59]} 10. Bd3 {[%emt 0:06:07]} O-O {[%emt 0:04:45]} 11. O-O {[%emt 0:00:12]} c5
{[%emt 0:11:13]} 12. Bd2 {[%emt 0:07:16]} Bb7 {[%emt 0:06:16]} 13. Qe2 {
[%emt 0:04:57]} Qc7 {[%emt 0:11:38]} 14. e5 {[%emt 0:07:55]} dxe5 {[%emt 0:04:
12]} 15. Nxe5 {[%emt 0:02:29]} Nxd3 {[%emt 0:01:53]} 16. cxd3 {[%emt 0:02:43]}
Nd7 {[%emt 0:01:21]} 17. Nc4 {[%emt 0:01:45]} Qc6 {[%emt 0:01:55]} 18. Ne4 {
[%emt 0:04:36]} f5 {[%emt 0:01:10]} 19. Ng5 {[%emt 0:03:18]} e5 {[%emt 0:00:13]
} 20. Bc3 {[%emt 0:02:27]} Rae8 {[%emt 0:00:21]} 21. Qc2 {[%emt 0:10:44]} exf4
{[%emt 0:01:01]} 22. Bxg7 {[%emt 0:01:28]} Kxg7 {[%emt 0:00:06]} 23. Nh3 {
[%emt 0:00:52]} Nf6 {[%emt 0:07:57]} 24. Nxf4 {[%emt 0:00:42]} g5 {[%emt 0:01:
07]} 25. Nh3 {[%emt 0:00:59]} Kg6 {[%emt 0:01:31]} 26. d4 {[%emt 0:06:32]} Ng4
{[%emt 0:00:11]} 27. d5 {[%emt 0:00:58]} Qxd5 {[%emt 0:06:29]} 28. Rad1 {
[%emt 0:00:10]} Qe4 {[%emt 0:01:04]} 29. Qxe4 {[%emt 0:03:44]} Rxe4 {[%emt 0:
03:37]} 30. Rd7 {[%emt 0:02:29]} Bc6 {[%emt 0:01:54]} 31. Rd6+ {[%emt 0:01:09]}
Rf6 {[%emt 0:00:06]} 32. b3 {[%emt 0:01:54]} Rxd6 {[%emt 0:01:11]} 33. Nxd6 {
[%emt 0:00:06]} Re2 {[%emt 0:00:53]} 34. Rxf5 {[%emt 0:00:48]} Rxg2+ {[%emt 0:
00:09]} 0-1

[Event "23rd ETCC Women 2021"]
[Site "Catez"]
[Date "2021.11.14"]
[Round "3.33"]
[White "Goossens, Hanne"]
[Black "Petrova, Kristyna"]
[Result "1/2-1/2"]
[ECO "C54"]
[WhiteElo "2126"]
[BlackElo "2275"]
[Annotator "ChessBase"]
[PlyCount "130"]
[EventDate "2021.11.08"]
[EventType "team-tourn"]
[EventCountry "SLO"]
[SourceTitle "playchess.com"]
[Source "ChessBase"]
[SourceQuality "1"]
[WhiteTeam "Belgium"]
[BlackTeam "Czech Republic"]
[WhiteTeamCountry "BEL"]
[BlackTeamCountry "CZE"]
[TimeControl "40/5400+30:1800+30"]

1. e4 {[%emt 0:00:10]} e5 {[%emt 0:00:06]} 2. Nf3 {[%emt 0:00:16]} Nc6 {
[%emt 0:00:06]} 3. Bc4 {[%emt 0:00:47]} Bc5 {[%emt 0:00:13]} 4. c3 {[%emt 0:00:
33]} Nf6 {[%emt 0:00:20]} 5. d3 {[%emt 0:00:27]} O-O {[%emt 0:00:24]} 6. O-O {
[%emt 0:01:22]} d5 {[%emt 0:00:43]} 7. exd5 Nxd5 {[%emt 0:00:07]} 8. Re1 {
[%emt 0:04:09]} Bg4 {[%emt 0:00:59]} 9. h3 {[%emt 0:00:58]} Bh5 {[%emt 0:00:18]
} 10. Nbd2 {[%emt 0:00:52]} Nb6 {[%emt 0:06:55]} 11. Ne4 {[%emt 0:05:36]} Bd6 {
[%emt 0:02:50]} 12. Bg5 {[%emt 0:05:16]} Qc8 {[%emt 0:20:55]} 13. Bb3 {[%emt 0:
06:20]} Kh8 {[%emt 0:07:37]} 14. Ng3 {[%emt 0:05:22]} Bxf3 {[%emt 0:03:29]} 15.
Qxf3 {[%emt 0:00:07]} f6 {[%emt 0:00:02]} 16. Be3 {[%emt 0:11:53]} f5 {[%emt 0:
00:38]} 17. Ne2 {[%emt 0:01:55]} Qe8 {[%emt 0:07:34]} 18. Bxb6 {[%emt 0:06:36]}
axb6 {[%emt 0:03:43]} 19. Nf4 {[%emt 0:10:38]} Na5 {[%emt 0:13:28]} 20. Bc2 {
[%emt 0:01:35]} Qc6 {[%emt 0:02:58]} 21. Qxc6 {[%emt 0:02:34]} Nxc6 {[%emt 0:
01:35]} 22. Ne6 {[%emt 0:00:29]} Rf6 {[%emt 0:00:56]} 23. Ng5 {[%emt 0:00:26]}
h6 {[%emt 0:01:56]} 24. Nf3 {[%emt 0:00:08]} b5 {[%emt 0:00:45]} 25. a3 {
[%emt 0:01:49]} g5 {[%emt 0:03:49]} 26. Bb3 {[%emt 0:07:42]} Re8 {[%emt 0:04:
12]} 27. Re2 {[%emt 0:01:51]} e4 {[%emt 0:04:37]} 28. Rae1 {[%emt 0:09:36]} Ne5
{[%emt 0:00:29]} 29. Nxe5 {[%emt 0:07:06]} Rxe5 {[%emt 0:00:08]} 30. dxe4 {
[%emt 0:00:14]} fxe4 {[%emt 0:06:11]} 31. Bc2 {[%emt 0:01:25]} Bc5 {[%emt 0:03:
00]} 32. Bxe4 {[%emt 0:02:09]} c6 {[%emt 0:00:51]} 33. Bf3 {[%emt 0:00:47]}
Rxe2 {[%emt 0:00:49]} 34. Rxe2 {[%emt 0:00:05]} Kg7 {[%emt 0:00:14]} 35. Bg4 {
[%emt 0:01:25]} Rf7 {[%emt 0:01:50]} 36. g3 {[%emt 0:00:40]} Kf6 {[%emt 0:01:
09]} 37. Kg2 {[%emt 0:00:31]} Re7 {[%emt 0:01:39]} 38. Rd2 {[%emt 0:01:53]} Kg6
{[%emt 0:00:53]} 39. Bd1 {[%emt 0:01:43]} Kg7 {[%emt 0:00:42]} 40. Bh5 {
[%emt 0:01:42]} Rc7 {[%emt 0:00:37]} 41. Be2 {[%emt 0:09:20]} Rf7 {[%emt 0:00:
50]} 42. Bf3 {[%emt 0:00:43]} Re7 {[%emt 0:01:49]} 43. Kf1 {[%emt 0:07:17]} Rf7
{[%emt 0:01:27]} 44. Be4 {[%emt 0:01:33]} Re7 {[%emt 0:00:53]} 45. Bc2 {
[%emt 0:01:38]} Rf7 {[%emt 0:04:28]} 46. Kg2 {[%emt 0:00:25]} Rc7 {[%emt 0:00:
42]} 47. a4 {[%emt 0:02:12]} bxa4 {[%emt 0:00:54]} 48. Bxa4 {[%emt 0:00:07]}
Rf7 {[%emt 0:10:02]} 49. Bd1 {[%emt 0:02:24]} Rc7 {[%emt 0:00:42]} 50. Bh5 {
[%emt 0:00:41]} Re7 {[%emt 0:01:30]} 51. b4 {[%emt 0:01:57]} Bb6 {[%emt 0:00:
38]} 52. c4 {[%emt 0:00:45]} Bc7 {[%emt 0:01:09]} 53. Bf3 {[%emt 0:00:49]} Be5
{[%emt 0:01:01]} 54. b5 {[%emt 0:01:45]} cxb5 {[%emt 0:02:10]} 55. cxb5 {
[%emt 0:00:06]} b6 {[%emt 0:00:35]} 56. Bc6 {[%emt 0:00:32]} Bc3 {[%emt 0:01:
06]} 57. Rc2 {[%emt 0:00:33]} Bd4 {[%emt 0:00:20]} 58. Rd2 {[%emt 0:01:01]} Bc5
{[%emt 0:01:11]} 59. Rd7 {[%emt 0:00:59]} Rxd7 {[%emt 0:00:21]} 60. Bxd7 {
[%emt 0:00:05]} Kf6 {[%emt 0:00:14]} 61. f4 {[%emt 0:00:37]} gxf4 {[%emt 0:00:
19]} 62. gxf4 {[%emt 0:00:05]} Be3 {[%emt 0:00:10]} 63. Kf3 {[%emt 0:00:16]}
Bc1 {[%emt 0:00:14]} 64. Kg4 {[%emt 0:00:33]} Bd2 {[%emt 0:00:15]} 65. Kf3 {
[%emt 0:00:43]} Bc1 {[%emt 0:00:04]} 1/2-1/2

[Event "23rd ETCC Women 2021"]
[Site "Catez"]
[Date "2021.11.14"]
[Round "3.34"]
[White "Miturova, Magdalena"]
[Black "Barbier, Wiebke"]
[Result "1-0"]
[ECO "A41"]
[WhiteElo "2248"]
[BlackElo "1964"]
[Annotator "NA"]
[PlyCount "47"]
[EventDate "2021.11.08"]
[EventType "team-tourn"]
[EventCountry "SLO"]
[SourceTitle "playchess.com"]
[Source "ChessBase"]
[SourceQuality "1"]
[WhiteTeam "Czech Republic"]
[BlackTeam "Belgium"]
[WhiteTeamCountry "CZE"]
[BlackTeamCountry "BEL"]
[TimeControl "40/5400+30:1800+30"]

1. Nf3 {[%emt 0:00:05]} d6 {[%emt 0:00:02]} 2. d4 {[%emt 0:00:08]} Bg4 {
[%emt 0:00:05]} 3. e4 {[%emt 0:05:17]} Nf6 {[%emt 0:00:38]} 4. Nc3 {[%emt 0:00:
31]} e6 {[%emt 0:00:26]} 5. h3 {[%emt 0:01:23]} Bxf3 6. Qxf3 d5 {[%emt 0:11:05]
} 7. Bg5 {[%emt 0:11:21]} Be7 {[%emt 0:09:40]} 8. Bxf6 {[%emt 0:08:31]} Bxf6 {
[%emt 0:01:36]} 9. exd5 {[%emt 0:00:56]} O-O {[%emt 0:08:52]} 10. O-O-O {
[%emt 0:03:38]} exd5 {[%emt 0:04:00]} 11. Nxd5 {[%emt 0:06:34]} Bg5+ {[%emt 0:
01:17]} 12. Kb1 {[%emt 0:01:09]} c6 {[%emt 0:02:06]} 13. Nc3 {[%emt 0:01:29]}
a5 {[%emt 0:08:21]} 14. h4 {[%emt 0:06:34]} Be7 {[%emt 0:02:15]} 15. Bd3 {
[%emt 0:05:26]} Nd7 {[%emt 0:07:48]} 16. g4 {[%emt 0:04:52]} a4 {[%emt 0:04:12]
} 17. g5 {[%emt 0:10:48]} Nb6 {[%emt 0:13:14]} 18. Qe4 {[%emt 0:05:32]} g6 {
[%emt 0:02:51]} 19. h5 {[%emt 0:02:17]} Kg7 {[%emt 0:08:48]} 20. hxg6 {[%emt 0:
01:10]} hxg6 {[%emt 0:00:41]} 21. Rh7+ {[%emt 0:03:55]} Kg8 {[%emt 0:04:50]}
22. Rdh1 {[%emt 0:00:57]} Bf6 {[%emt 0:03:11]} 23. Rh8+ {[%emt 0:05:15]} Bxh8 {
[%emt 0:00:30]} 24. Qh4 {[%emt 0:00:07]} 1-0

[Event "23rd ETCC Women 2021"]
[Site "Catez"]
[Date "2021.11.14"]
[Round "3.35"]
[White "Vanduyfhuys, Daria"]
[Black "Richterova, Natasa"]
[Result "1-0"]
[ECO "D19"]
[WhiteElo "1933"]
[BlackElo "2185"]
[Annotator "NA"]
[PlyCount "87"]
[EventDate "2021.11.08"]
[EventType "team-tourn"]
[EventCountry "SLO"]
[SourceTitle "playchess.com"]
[Source "ChessBase"]
[SourceQuality "1"]
[WhiteTeam "Belgium"]
[BlackTeam "Czech Republic"]
[WhiteTeamCountry "BEL"]
[BlackTeamCountry "CZE"]
[TimeControl "40/5400+30:1800+30"]

1. d4 {[%emt 0:00:03]} d5 {[%emt 0:00:14]} 2. c4 {[%emt 0:00:08]} c6 {[%emt 0:
00:06]} 3. Nf3 {[%emt 0:00:08]} Nf6 {[%emt 0:00:07]} 4. Nc3 {[%emt 0:00:07]}
dxc4 {[%emt 0:00:10]} 5. a4 {[%emt 0:03:15]} Bf5 {[%emt 0:00:20]} 6. e3 {
[%emt 0:00:41]} e6 {[%emt 0:01:07]} 7. Bxc4 {[%emt 0:00:07]} Nbd7 {[%emt 0:00:
29]} 8. O-O {[%emt 0:01:06]} Bb4 {[%emt 0:00:20]} 9. Qe2 {[%emt 0:03:07]} Bg6 {
[%emt 0:00:28]} 10. e4 {[%emt 0:10:34]} O-O {[%emt 0:01:45]} 11. e5 {[%emt 0:
02:33]} Nd5 {[%emt 0:00:47]} 12. Bg5 {[%emt 0:02:56]} Be7 {[%emt 0:05:44]} 13.
Bxe7 Qxe7 {[%emt 0:01:27]} 14. Ne4 {[%emt 0:09:14]} N7b6 {[%emt 0:03:06]} 15.
Bxd5 {[%emt 0:11:19]} cxd5 {[%emt 0:12:42]} 16. Nc5 {[%emt 0:03:14]} Bh5 {
[%emt 0:06:29]} 17. a5 {[%emt 0:03:20]} Bxf3 {[%emt 0:06:47]} 18. Qxf3 {
[%emt 0:03:33]} Nc4 {[%emt 0:01:29]} 19. Qe2 {[%emt 0:09:15]} b6 {[%emt 0:00:
47]} 20. axb6 {[%emt 0:00:07]} axb6 {[%emt 0:01:10]} 21. Nd3 {[%emt 0:00:22]}
Na5 {[%emt 0:08:25]} 22. Ra4 {[%emt 0:03:17]} Nc6 {[%emt 0:02:39]} 23. Rfa1 {
[%emt 0:06:02]} Nxd4 {[%emt 0:10:08]} 24. Qd1 {[%emt 0:02:35]} Rxa4 {[%emt 0:
01:20]} 25. Qxa4 {[%emt 0:04:01]} Nf5 {[%emt 0:02:12]} 26. Qc6 {[%emt 0:01:55]}
Rb8 {[%emt 0:10:04]} 27. Ra6 {[%emt 0:04:39]} Qd8 {[%emt 0:06:15]} 28. h3 {
[%emt 0:00:09]} Ne7 {[%emt 0:00:10]} 29. Qd6 {[%emt 0:00:20]} Qc8 {[%emt 0:17:
29]} 30. Rxb6 {[%emt 0:03:55]} Rxb6 {[%emt 0:00:01]} 31. Qxb6 {[%emt 0:00:05]}
g6 {[%emt 0:00:08]} 32. Nc5 {[%emt 0:02:38]} Nc6 {[%emt 0:00:45]} 33. f4 {
[%emt 0:00:38]} Qa8 {[%emt 0:00:22]} 34. Kh2 {[%emt 0:01:36]} Nd4 {[%emt 0:01:
17]} 35. b4 {[%emt 0:03:30]} Kg7 {[%emt 0:00:12]} 36. Nb7 {[%emt 0:01:26]} Qa1
{[%emt 0:00:43]} 37. Nd6 {[%emt 0:02:08]} Ne2 {[%emt 0:00:08]} 38. Qf2 {
[%emt 0:00:31]} Nc3 {[%emt 0:00:52]} 39. Qh4 {[%emt 0:01:48]} Ne4 {[%emt 0:00:
21]} 40. Ne8+ {[%emt 0:01:57]} Kf8 {[%emt 0:00:47]} 41. Qd8 {[%emt 0:30:54]}
Ng5 {[%emt 0:03:02]} 42. Nf6+ {[%emt 0:00:00]} Kg7 {[%emt 0:00:05]} 43. Qg8+ {
[%emt 0:00:00]} Kh6 {[%emt 0:00:10]} 44. Qf8# {[%emt 0:00:00]} 1-0

[Event "23rd ETCC Women 2021"]
[Site "Catez"]
[Date "2021.11.14"]
[Round "3.36"]
[White "Nemcova, Karin"]
[Black "Dierckens, Sarah"]
[Result "1/2-1/2"]
[ECO "B75"]
[WhiteElo "2169"]
[BlackElo "1795"]
[Annotator "NA"]
[PlyCount "56"]
[EventDate "2021.11.08"]
[EventType "team-tourn"]
[EventCountry "SLO"]
[SourceTitle "playchess.com"]
[Source "ChessBase"]
[SourceQuality "1"]
[WhiteTeam "Czech Republic"]
[BlackTeam "Belgium"]
[WhiteTeamCountry "CZE"]
[BlackTeamCountry "BEL"]
[TimeControl "40/5400+30:1800+30"]

1. e4 {[%emt 0:00:02]} c5 {[%emt 0:00:09]} 2. Nf3 {[%emt 0:00:05]} d6 {[%emt 0:
00:07]} 3. d4 {[%emt 0:00:06]} cxd4 {[%emt 0:00:06]} 4. Nxd4 {[%emt 0:00:06]}
Nf6 {[%emt 0:00:19]} 5. Nc3 {[%emt 0:00:08]} g6 {[%emt 0:00:25]} 6. Be3 {
[%emt 0:00:09]} Bg7 {[%emt 0:00:08]} 7. f3 {[%emt 0:00:31]} a6 {[%emt 0:00:17]}
8. Qd2 {[%emt 0:00:44]} Nbd7 {[%emt 0:00:18]} 9. O-O-O {[%emt 0:01:39]} b5 {
[%emt 0:00:42]} 10. Bh6 {[%emt 0:05:36]} Bxh6 11. Qxh6 {[%emt 0:00:43]} Bb7 {
[%emt 0:01:48]} 12. h4 {[%emt 0:07:28]} Rc8 {[%emt 0:03:17]} 13. Kb1 {[%emt 0:
05:15]} Rxc3 {[%emt 0:04:18]} 14. bxc3 {[%emt 0:02:46]} Qc7 {[%emt 0:00:07]}
15. g4 {[%emt 0:03:38]} Nb6 {[%emt 0:07:30]} 16. h5 {[%emt 0:14:55]} Na4 {
[%emt 0:12:53]} 17. Ne2 {[%emt 0:04:02]} Qc5 {[%emt 0:12:25]} 18. Rd3 {[%emt 0:
12:47]} g5 {[%emt 0:01:35]} 19. Kc1 {[%emt 0:02:32]} Qc4 {[%emt 0:13:26]} 20.
Qxg5 {[%emt 0:05:18]} Qxa2 {[%emt 0:00:44]} 21. Ng3 {[%emt 0:05:32]} Nb2 {
[%emt 0:02:18]} 22. Kd2 {[%emt 0:05:14]} Nc4+ {[%emt 0:02:12]} 23. Kd1 {
[%emt 0:00:57]} Qb1+ {[%emt 0:06:41]} 24. Qc1 {[%emt 0:00:50]} Nb2+ {[%emt 0:
00:32]} 25. Kd2 {[%emt 0:00:09]} Nc4+ {[%emt 0:01:07]} 26. Kd1 {[%emt 0:00:09]}
Nb2+ {[%emt 0:01:04]} 27. Kd2 {[%emt 0:00:05]} Nc4+ {[%emt 0:00:07]} 28. Kd1 {
[%emt 0:00:06]} Nb2+ {[%emt 0:01:13]} 1/2-1/2

[Event "23rd ETCC Women 2021"]
[Site "Catez"]
[Date "2021.11.14"]
[Round "3.37"]
[White "Repkova, Eva"]
[Black "Dolzhikova, Olga"]
[Result "1-0"]
[ECO "B13"]
[WhiteElo "2307"]
[BlackElo "2187"]
[Annotator "NA"]
[PlyCount "49"]
[EventDate "2021.11.08"]
[EventType "team-tourn"]
[EventCountry "SLO"]
[SourceTitle "playchess.com"]
[Source "ChessBase"]
[SourceQuality "1"]
[WhiteTeam "Slovakia"]
[BlackTeam "Norway"]
[WhiteTeamCountry "SVK"]
[BlackTeamCountry "NOR"]
[TimeControl "40/5400+30:1800+30"]

1. e4 {[%emt 0:00:20]} g6 {[%emt 0:00:19]} 2. d4 {[%emt 0:00:08]} Bg7 {[%emt 0:
00:04]} 3. Nf3 {[%emt 0:00:05]} c6 {[%emt 0:00:41]} 4. Bd3 {[%emt 0:02:05]} d5
{[%emt 0:00:19]} 5. exd5 {[%emt 0:00:13]} cxd5 {[%emt 0:00:15]} 6. c3 {[%emt 0:
01:10]} Nf6 {[%emt 0:02:56]} 7. O-O {[%emt 0:00:32]} O-O {[%emt 0:00:35]} 8. h3
{[%emt 0:00:42]} Nc6 {[%emt 0:02:08]} 9. Bf4 {[%emt 0:09:14]} a6 {[%emt 0:11:
18]} 10. a4 {[%emt 0:04:36]} b6 {[%emt 0:08:40]} 11. Nbd2 {[%emt 0:00:54]} Bb7
{[%emt 0:00:41]} 12. Qe2 {[%emt 0:01:33]} Re8 {[%emt 0:06:48]} 13. Ne5 {
[%emt 0:05:43]} Nh5 {[%emt 0:07:14]} 14. Bh2 {[%emt 0:00:03]} Nxe5 {[%emt 0:00:
51]} 15. dxe5 {[%emt 0:00:20]} Bh6 {[%emt 0:12:09]} 16. f4 {[%emt 0:12:37]} Ng7
{[%emt 0:18:20]} 17. Nf3 {[%emt 0:05:55]} Ne6 {[%emt 0:03:56]} 18. f5 {[%emt 0:
00:10]} Nc5 {[%emt 0:01:09]} 19. e6 {[%emt 0:00:12]} g5 {[%emt 0:17:46]} 20.
Ne5 {[%emt 0:08:31]} fxe6 {[%emt 0:01:20]} 21. fxe6 {[%emt 0:00:16]} Bg7 {
[%emt 0:01:26]} 22. Nf7 {[%emt 0:04:46]} Qc8 {[%emt 0:00:13]} 23. Bxh7+ {
[%emt 0:00:05]} Kxh7 {[%emt 0:00:10]} 24. Qh5+ {[%emt 0:00:03]} Kg8 {[%emt 0:
00:07]} 25. Nxg5 {[%emt 0:00:04]} 1-0